[Event "Late-Titled-Tuesday-Blitz-March-26-2024"]
[Site "Chess.com"]
[Date "2024.03.26"]
[Round "3"]
[White "TanitoluwaAps116"]
[Black "FabianoCaruana"]
[Result "0-1"]
[WhiteElo "2820"]
[BlackElo "3101"]
[TimeControl "180+1"]
[EndTime "14:30:59 PDT"]
[Termination "FabianoCaruana won by checkmate"]

1. e4 {[%clk 0:03:00.9]} 1... e5 {[%clk 0:03:00.1]} 2. Nf3 {[%clk 0:03:01.3]}
2... Nc6 {[%clk 0:03:00.6]} 3. Bc4 {[%clk 0:03:02]} 3... Nf6 {[%clk 0:03:00.4]}
4. d3 {[%clk 0:03:02.5]} 4... Be7 {[%clk 0:03:00]} 5. c3 {[%clk 0:03:00.9]} 5...
O-O {[%clk 0:03:00.1]} 6. O-O {[%clk 0:03:01]} 6... d6 {[%clk 0:02:59.1]} 7. h3
{[%clk 0:02:59.7]} 7... Na5 {[%clk 0:02:56.7]} 8. Bb5 {[%clk 0:02:59.7]} 8... a6
{[%clk 0:02:57.2]} 9. Ba4 {[%clk 0:03:00.1]} 9... b5 {[%clk 0:02:57.8]} 10. Bc2
{[%clk 0:03:00.8]} 10... c5 {[%clk 0:02:58.3]} 11. Re1 {[%clk 0:03:01.3]} 11...
Re8 {[%clk 0:02:52.7]} 12. Nbd2 {[%clk 0:02:59.9]} 12... Bf8 {[%clk 0:02:51.9]}
13. Nf1 {[%clk 0:03:00.1]} 13... h6 {[%clk 0:02:51.6]} 14. Ng3 {[%clk
0:03:00.4]} 14... Nc6 {[%clk 0:02:51.3]} 15. Be3 {[%clk 0:02:56.3]} 15... d5
{[%clk 0:02:50.3]} 16. exd5 {[%clk 0:02:30.4]} 16... Nxd5 {[%clk 0:02:51.2]} 17.
Bd2 {[%clk 0:02:29.5]} 17... Bb7 {[%clk 0:02:17.6]} 18. Rc1 {[%clk 0:02:17.4]}
18... Rc8 {[%clk 0:02:11.2]} 19. Kh2 {[%clk 0:02:15.2]} 19... g6 {[%clk
0:02:01.6]} 20. a3 {[%clk 0:02:05.7]} 20... Bg7 {[%clk 0:01:46.6]} 21. Bb3
{[%clk 0:02:05.3]} 21... Na5 {[%clk 0:01:41.3]} 22. Ba2 {[%clk 0:02:05.4]} 22...
c4 {[%clk 0:01:40.2]} 23. Qc2 {[%clk 0:01:25.1]} 23... Qb6 {[%clk 0:01:18.3]}
24. Re2 {[%clk 0:00:36.3]} 24... cxd3 {[%clk 0:01:14.5]} 25. Qxd3 {[%clk
0:00:36.3]} 25... Nc4 {[%clk 0:01:15.1]} 26. Qc2 {[%clk 0:00:31.7]} 26... f5
{[%clk 0:00:35.4]} 27. Rce1 {[%clk 0:00:21]} 27... e4 {[%clk 0:00:35.6]} 28. Nh4
{[%clk 0:00:19.5]} 28... Qf6 {[%clk 0:00:32.6]} 29. Nf3 {[%clk 0:00:15.8]} 29...
Qd6 {[%clk 0:00:24.8]} 30. Bc1 {[%clk 0:00:14.3]} 30... Kh7 {[%clk 0:00:21.8]}
31. Nd4 {[%clk 0:00:13.9]} 31... Be5 {[%clk 0:00:13.3]} 32. Rd1 {[%clk
0:00:06.4]} 32... Qf6 {[%clk 0:00:10.3]} 33. Kg1 {[%clk 0:00:06.2]} 33... Red8
{[%clk 0:00:10.2]} 34. a4 {[%clk 0:00:04.7]} 34... Nf4 {[%clk 0:00:09.8]} 35.
Bxf4 {[%clk 0:00:04.6]} 35... Bxf4 {[%clk 0:00:10.7]} 36. axb5 {[%clk
0:00:04.6]} 36... axb5 {[%clk 0:00:11.6]} 37. Nxb5 {[%clk 0:00:04.6]} 37...
Rxd1+ {[%clk 0:00:08.8]} 38. Qxd1 {[%clk 0:00:05.5]} 38... Rd8 {[%clk
0:00:09.1]} 39. Nd4 {[%clk 0:00:05.9]} 39... Ne5 {[%clk 0:00:08.2]} 40. Qb3
{[%clk 0:00:05.6]} 40... Bd5 {[%clk 0:00:07.8]} 41. Qa4 {[%clk 0:00:04.5]} 41...
Ra8 {[%clk 0:00:07.7]} 42. Qb5 {[%clk 0:00:03.5]} 42... Rxa2 {[%clk 0:00:06.3]}
43. Qxd5 {[%clk 0:00:03.4]} 43... Ra1+ {[%clk 0:00:06.9]} 44. Nf1 {[%clk
0:00:03.4]} 44... Qf7 {[%clk 0:00:06]} 45. Qd6 {[%clk 0:00:02.6]} 45... Nd3
{[%clk 0:00:05.8]} 46. Qc6 {[%clk 0:00:02.4]} 46... Be5 {[%clk 0:00:05.9]} 47.
g3 {[%clk 0:00:02.6]} 47... h5 {[%clk 0:00:05.6]} 48. Kg2 {[%clk 0:00:03.1]}
48... h4 {[%clk 0:00:05.7]} 49. f4 {[%clk 0:00:03.6]} 49... Bg7 {[%clk
0:00:05.1]} 50. g4 {[%clk 0:00:03.3]} 50... Nxf4+ {[%clk 0:00:04.2]} 51. Kf2
{[%clk 0:00:03.9]} 51... Nxe2 {[%clk 0:00:04.9]} 52. Kxe2 {[%clk 0:00:04.8]}
52... Bxd4 {[%clk 0:00:04.6]} 53. cxd4 {[%clk 0:00:04.6]} 53... fxg4 {[%clk
0:00:05.1]} 54. Nd2 {[%clk 0:00:04.6]} 54... e3 {[%clk 0:00:03.6]} 55. Kxe3
{[%clk 0:00:03.6]} 55... Re1+ {[%clk 0:00:03]} 56. Kd3 {[%clk 0:00:04.2]} 56...
Qf5+ {[%clk 0:00:03.3]} 57. Ne4 {[%clk 0:00:02.3]} 57... gxh3 {[%clk 0:00:03.7]}
58. Qc7+ {[%clk 0:00:02.2]} 58... Kh6 {[%clk 0:00:04.1]} 59. Qd8 {[%clk
0:00:02.1]} 59... Qxe4+ {[%clk 0:00:04.4]} 60. Kc3 {[%clk 0:00:02.1]} 60... Qe8
{[%clk 0:00:04.5]} 61. Qxh4+ {[%clk 0:00:02]} 61... Kg7 {[%clk 0:00:05.4]} 62.
Qxh3 {[%clk 0:00:02.1]} 62... Re3+ {[%clk 0:00:05.1]} 63. Qxe3 {[%clk 0:00:03]}
63... Qxe3+ {[%clk 0:00:05.1]} 64. Kc4 {[%clk 0:00:03.9]} 64... g5 {[%clk
0:00:05.6]} 65. b4 {[%clk 0:00:04.5]} 65... g4 {[%clk 0:00:06.5]} 66. b5 {[%clk
0:00:05.4]} 66... g3 {[%clk 0:00:06.9]} 67. b6 {[%clk 0:00:06.3]} 67... Qe4
{[%clk 0:00:07.4]} 68. b7 {[%clk 0:00:07.2]} 68... Qxb7 {[%clk 0:00:07.6]} 69.
Kd3 {[%clk 0:00:07.9]} 69... Qd7 {[%clk 0:00:08.4]} 70. Ke2 {[%clk 0:00:08.8]}
70... Qxd4 {[%clk 0:00:08.2]} 71. Kf3 {[%clk 0:00:09.2]} 71... Qf2+ {[%clk
0:00:08.8]} 72. Kg4 {[%clk 0:00:09.4]} 72... g2 {[%clk 0:00:09.1]} 73. Kh3
{[%clk 0:00:10.3]} 73... Qf1 {[%clk 0:00:08]} 74. Kh4 {[%clk 0:00:10.4]} 74...
g1=Q {[%clk 0:00:08.3]} 75. Kh5 {[%clk 0:00:11]} 75... Qh3# {[%clk 0:00:09.1]}
0-1

[Event "Late-Titled-Tuesday-Blitz-March-26-2024"]
[Site "Chess.com"]
[Date "2024.03.26"]
[Round "3"]
[White "misterlamine"]
[Black "Zampronha1971"]
[Result "0-1"]
[WhiteElo "2478"]
[BlackElo "2375"]
[TimeControl "180+1"]
[EndTime "14:31:04 PDT"]
[Termination "Zampronha1971 won by resignation"]

1. d4 {[%clk 0:03:00.9]} 1... Nf6 {[%clk 0:02:59.1]} 2. Nf3 {[%clk 0:03:01.3]}
2... e6 {[%clk 0:02:59.4]} 3. e3 {[%clk 0:02:59.5]} 3... b6 {[%clk 0:02:59.3]}
4. c4 {[%clk 0:02:59]} 4... Bb7 {[%clk 0:02:59]} 5. Nc3 {[%clk 0:02:59.5]} 5...
Bb4 {[%clk 0:02:59]} 6. Bd2 {[%clk 0:02:59.2]} 6... O-O {[%clk 0:02:57.9]} 7.
Bd3 {[%clk 0:02:58.3]} 7... Bxc3 {[%clk 0:02:57.4]} 8. Bxc3 {[%clk 0:02:56.7]}
8... Ne4 {[%clk 0:02:57.9]} 9. Qc2 {[%clk 0:02:54.1]} 9... f5 {[%clk 0:02:58.3]}
10. O-O {[%clk 0:02:45.9]} 10... d6 {[%clk 0:02:58.4]} 11. b3 {[%clk 0:02:45.7]}
11... Nxc3 {[%clk 0:02:16.7]} 12. Qxc3 {[%clk 0:02:46.6]} 12... Bxf3 {[%clk
0:02:15.6]} 13. gxf3 {[%clk 0:02:43]} 13... Qh4 {[%clk 0:02:15.9]} 14. Kh1
{[%clk 0:02:12.6]} 14... Rf6 {[%clk 0:02:16]} 15. Rg1 {[%clk 0:02:12.9]} 15...
Qxf2 {[%clk 0:02:09.2]} 16. Raf1 {[%clk 0:02:03.1]} 16... Qxe3 {[%clk
0:02:03.2]} 17. c5 {[%clk 0:01:59.3]} 17... bxc5 {[%clk 0:01:21.3]} 18. dxc5
{[%clk 0:01:57.9]} 18... Nd7 {[%clk 0:01:21.7]} 19. c6 {[%clk 0:01:56.8]} 19...
Ne5 {[%clk 0:01:16]} 20. f4 {[%clk 0:01:50.4]} 20... Qxd3 {[%clk 0:01:07.2]} 21.
Qb2 {[%clk 0:01:46]} 21... Qe4+ {[%clk 0:01:05.2]} 22. Rg2 {[%clk 0:01:42.3]}
22... Rg6 {[%clk 0:00:57.3]} 23. fxe5 {[%clk 0:01:40.8]} 23... Qxg2+ {[%clk
0:00:57]} 24. Qxg2 {[%clk 0:01:40.8]} 24... Rxg2 {[%clk 0:00:57.7]} 25. Kxg2
{[%clk 0:01:41]} 25... d5 {[%clk 0:00:52.8]} 26. Kf3 {[%clk 0:01:38.4]} 26...
Rb8 {[%clk 0:00:52.4]} 27. Rc1 {[%clk 0:01:36.9]} 27... Rb6 {[%clk 0:00:52.4]}
28. Ke3 {[%clk 0:01:35.4]} 28... Kf7 {[%clk 0:00:50.5]} 29. Rc5 {[%clk
0:01:35.8]} 29... g5 {[%clk 0:00:48.5]} 30. Ra5 {[%clk 0:01:35.4]} 30... a6
{[%clk 0:00:47.3]} 31. Rc5 {[%clk 0:01:31]} 31... f4+ {[%clk 0:00:45.1]} 32. Kd3
{[%clk 0:01:27.5]} 32... Kg6 {[%clk 0:00:45.4]} 33. Kc3 {[%clk 0:01:23.4]} 33...
Kf5 {[%clk 0:00:45.8]} 34. a4 {[%clk 0:01:22.2]} 34... Kxe5 {[%clk 0:00:40.7]}
35. a5 {[%clk 0:01:22.6]} 35... Rb8 {[%clk 0:00:38.8]} 36. b4 {[%clk 0:01:23]}
36... Kd6 {[%clk 0:00:38.2]} 37. Kb3 {[%clk 0:01:19.7]} 37... e5 {[%clk
0:00:37.3]} 38. Rc1 {[%clk 0:01:18.4]} 38... e4 {[%clk 0:00:36.7]} 39. Rg1
{[%clk 0:01:15.7]} 39... h6 {[%clk 0:00:36]} 40. h4 {[%clk 0:01:16]} 40... Rg8
{[%clk 0:00:32.3]} 41. Ka4 {[%clk 0:01:16]} 41... g4 {[%clk 0:00:29.1]} 42. h5
{[%clk 0:01:13.5]} 42... g3 {[%clk 0:00:28.4]} 43. b5 {[%clk 0:01:14]} 43...
axb5+ {[%clk 0:00:27.5]} 44. Kxb5 {[%clk 0:01:14.9]} 44... f3 {[%clk 0:00:24.5]}
45. a6 {[%clk 0:01:14.6]} 45... g2 {[%clk 0:00:24.2]} 46. a7 {[%clk 0:01:13.8]}
46... Ke5 {[%clk 0:00:19]} 47. Ka6 {[%clk 0:01:13.2]} 47... Ra8 {[%clk 0:00:18]}
48. Kb7 {[%clk 0:01:13.4]} 48... Rxa7+ {[%clk 0:00:18.9]} 49. Kxa7 {[%clk
0:01:13.4]} 49... f2 {[%clk 0:00:19.3]} 50. Rxg2 {[%clk 0:01:12.8]} 50... f1=Q
{[%clk 0:00:19.7]} 51. Rg7 {[%clk 0:01:12.7]} 51... Qa1+ {[%clk 0:00:17.3]} 52.
Kb7 {[%clk 0:01:13]} 52... Kd4 {[%clk 0:00:17.3]} 53. Rxc7 {[%clk 0:01:11.5]}
53... e3 {[%clk 0:00:17.3]} 54. Re7 {[%clk 0:01:09.2]} 54... Kd3 {[%clk
0:00:17.4]} 55. c7 {[%clk 0:01:09.7]} 55... Qc1 {[%clk 0:00:17.2]} 56. Rd7
{[%clk 0:01:00.8]} 56... d4 {[%clk 0:00:16.3]} 57. Rd6 {[%clk 0:00:57.5]} 57...
Qxc7+ {[%clk 0:00:15.1]} 58. Kxc7 {[%clk 0:00:56.8]} 58... e2 {[%clk 0:00:15.2]}
59. Rxh6 {[%clk 0:00:51.5]} 59... e1=Q {[%clk 0:00:14.3]} 60. Rd6 {[%clk
0:00:48.1]} 60... Qg3 {[%clk 0:00:14.3]} 61. h6 {[%clk 0:00:47.9]} 61... Qh2
{[%clk 0:00:12.8]} 62. Kd7 {[%clk 0:00:47.6]} 62... Kc2 {[%clk 0:00:12.7]} 63.
Ke7 {[%clk 0:00:47.9]} 63... d3 {[%clk 0:00:12.7]} 64. Rc6+ {[%clk 0:00:48.1]}
64... Kd1 {[%clk 0:00:12.4]} 65. Kf7 {[%clk 0:00:46.6]} 65... d2 {[%clk
0:00:12.1]} 66. Kg7 {[%clk 0:00:45.9]} 66... Qg2+ {[%clk 0:00:12.2]} 67. Rg6
{[%clk 0:00:44.7]} 67... Qb7+ {[%clk 0:00:12.2]} 68. Kg8 {[%clk 0:00:42.8]}
68... Kc1 {[%clk 0:00:13.1]} 69. h7 {[%clk 0:00:38.7]} 69... Qb3+ {[%clk
0:00:13.7]} 70. Kg7 {[%clk 0:00:37.7]} 70... d1=Q {[%clk 0:00:14]} 71. h8=Q
{[%clk 0:00:34.9]} 71... Qd4+ {[%clk 0:00:14.5]} 72. Kh6 {[%clk 0:00:32.5]}
72... Qh3+ {[%clk 0:00:14.9]} 73. Kg5 {[%clk 0:00:31.1]} 73... Qhxh8 {[%clk
0:00:15.7]} 74. Rc6+ {[%clk 0:00:29.8]} 74... Qc3 {[%clk 0:00:15.4]} 75. Rxc3+
{[%clk 0:00:29.3]} 75... Qxc3 {[%clk 0:00:15.4]} 0-1

[Event "Late-Titled-Tuesday-Blitz-March-26-2024"]
[Site "Chess.com"]
[Date "2024.03.26"]
[Round "3"]
[White "KetiTsatsalashvili"]
[Black "Zavgorodniy_Sergiy"]
[Result "1-0"]
[WhiteElo "2452"]
[BlackElo "2640"]
[TimeControl "180+1"]
[EndTime "14:31:07 PDT"]
[Termination "KetiTsatsalashvili won by checkmate"]

1. d4 {[%clk 0:03:00.9]} 1... d5 {[%clk 0:02:59.1]} 2. Nf3 {[%clk 0:03:00.8]}
2... Nf6 {[%clk 0:02:58.6]} 3. c4 {[%clk 0:02:56.7]} 3... dxc4 {[%clk
0:02:59.5]} 4. e3 {[%clk 0:02:56.7]} 4... e6 {[%clk 0:02:59.5]} 5. Bxc4 {[%clk
0:02:57.2]} 5... a6 {[%clk 0:02:58.9]} 6. a4 {[%clk 0:02:56.9]} 6... c5 {[%clk
0:02:58.1]} 7. O-O {[%clk 0:02:57.1]} 7... Nc6 {[%clk 0:02:58]} 8. Qe2 {[%clk
0:02:57.2]} 8... cxd4 {[%clk 0:02:56.3]} 9. Rd1 {[%clk 0:02:57.3]} 9... Be7
{[%clk 0:02:56.1]} 10. exd4 {[%clk 0:02:57.4]} 10... O-O {[%clk 0:02:55.5]} 11.
Nc3 {[%clk 0:02:56.8]} 11... Nb4 {[%clk 0:02:55.7]} 12. Ne5 {[%clk 0:02:56.1]}
12... Bd7 {[%clk 0:02:55.3]} 13. Bg5 {[%clk 0:02:53.8]} 13... Bc6 {[%clk
0:02:54.4]} 14. Rac1 {[%clk 0:02:43.3]} 14... Rc8 {[%clk 0:02:49.6]} 15. Nxf7
{[%clk 0:02:30.6]} 15... Rxf7 {[%clk 0:02:48]} 16. Bxe6 {[%clk 0:02:30.7]} 16...
Nbd5 {[%clk 0:02:42.9]} 17. Bxf6 {[%clk 0:02:08.6]} 17... Bxf6 {[%clk
0:02:25.2]} 18. Nxd5 {[%clk 0:02:01.5]} 18... Kf8 {[%clk 0:02:04.3]} 19. Bxf7
{[%clk 0:01:39.1]} 19... Kxf7 {[%clk 0:01:54.8]} 20. Nxf6 {[%clk 0:01:38.9]}
20... Qxf6 {[%clk 0:01:53.4]} 21. d5 {[%clk 0:01:28.4]} 21... Bd7 {[%clk
0:01:49.3]} 22. Rxc8 {[%clk 0:01:28.1]} 22... Bxc8 {[%clk 0:01:50.2]} 23. Qc4
{[%clk 0:01:25.8]} 23... Bd7 {[%clk 0:01:43.7]} 24. d6+ {[%clk 0:01:25.8]} 24...
Kf8 {[%clk 0:01:42.8]} 25. Qc7 {[%clk 0:01:20.6]} 25... Qe6 {[%clk 0:01:39]} 26.
h3 {[%clk 0:01:13.5]} 26... b5 {[%clk 0:01:29.2]} 27. a5 {[%clk 0:01:10.7]}
27... h5 {[%clk 0:01:21.7]} 28. Qb6 {[%clk 0:01:01]} 28... Qe2 {[%clk
0:01:19.1]} 29. Rc1 {[%clk 0:00:50.1]} 29... Kf7 {[%clk 0:01:12]} 30. Qxa6
{[%clk 0:00:41.6]} 30... Qxb2 {[%clk 0:01:10.1]} 31. Re1 {[%clk 0:00:38.9]}
31... Kf6 {[%clk 0:01:04.8]} 32. Qb6 {[%clk 0:00:37.9]} 32... Qc3 {[%clk
0:00:58.5]} 33. Qd8+ {[%clk 0:00:36.6]} 33... Kg6 {[%clk 0:00:57.2]} 34. Re3
{[%clk 0:00:31.3]} 34... Qc1+ {[%clk 0:00:47.6]} 35. Kh2 {[%clk 0:00:31.1]}
35... Qc6 {[%clk 0:00:46.8]} 36. Qe7 {[%clk 0:00:20.5]} 36... h4 {[%clk
0:00:45.5]} 37. Rf3 {[%clk 0:00:17.4]} 37... b4 {[%clk 0:00:41.8]} 38. Qf7+
{[%clk 0:00:15.8]} 38... Kh6 {[%clk 0:00:40.8]} 39. Qf4+ {[%clk 0:00:15.8]}
39... Kg6 {[%clk 0:00:36.6]} 40. Qxh4 {[%clk 0:00:15.7]} 40... Qxd6+ {[%clk
0:00:36]} 41. Rg3+ {[%clk 0:00:16.1]} 41... Kf7 {[%clk 0:00:35.4]} 42. Qc4+
{[%clk 0:00:15.8]} 42... Be6 {[%clk 0:00:34.9]} 43. Qe4 {[%clk 0:00:14.5]} 43...
b3 {[%clk 0:00:34.1]} 44. Qf3+ {[%clk 0:00:12.3]} 44... Kg8 {[%clk 0:00:32.5]}
45. Qc3 {[%clk 0:00:12.4]} 45... Qd7 {[%clk 0:00:21.3]} 46. a6 {[%clk
0:00:12.2]} 46... Bd5 {[%clk 0:00:16.1]} 47. a7 {[%clk 0:00:12.4]} 47... Qxa7
{[%clk 0:00:15.3]} 48. Qc8+ {[%clk 0:00:09.3]} 48... Kh7 {[%clk 0:00:15.3]} 49.
Qf5+ {[%clk 0:00:09.3]} 49... Kh8 {[%clk 0:00:13.8]} 50. Qxd5 {[%clk 0:00:09.2]}
50... b2 {[%clk 0:00:14.3]} 51. Qh5+ {[%clk 0:00:09]} 51... Kg8 {[%clk
0:00:14.3]} 52. Qe8+ {[%clk 0:00:09.6]} 52... Kh7 {[%clk 0:00:14.3]} 53. Qe4+
{[%clk 0:00:09.8]} 53... Kh8 {[%clk 0:00:13.9]} 54. Qb1 {[%clk 0:00:09.9]} 54...
Qb8 {[%clk 0:00:13.2]} 55. h4 {[%clk 0:00:09]} 55... Qb4 {[%clk 0:00:11.4]} 56.
h5 {[%clk 0:00:08.9]} 56... Qd2 {[%clk 0:00:06.8]} 57. Rf3 {[%clk 0:00:07.5]}
57... Qd6+ {[%clk 0:00:03.2]} 58. g3 {[%clk 0:00:07.3]} 58... Qc5 {[%clk
0:00:03.1]} 59. Qxb2 {[%clk 0:00:06.7]} 59... Qxh5+ {[%clk 0:00:03.2]} 60. Kg2
{[%clk 0:00:07.4]} 60... Kh7 {[%clk 0:00:03.4]} 61. Rf4 {[%clk 0:00:06.9]} 61...
Qd5+ {[%clk 0:00:02.6]} 62. Kh2 {[%clk 0:00:07.4]} 62... Qh5+ {[%clk 0:00:02.6]}
63. Rh4 {[%clk 0:00:07.6]} 63... Qxh4+ {[%clk 0:00:03.1]} 64. gxh4 {[%clk
0:00:08.5]} 64... g6 {[%clk 0:00:03.6]} 65. Qd2 {[%clk 0:00:09]} 65... Kg7
{[%clk 0:00:03.5]} 66. Qg5 {[%clk 0:00:09.9]} 66... Kh7 {[%clk 0:00:03.9]} 67.
h5 {[%clk 0:00:10.6]} 67... gxh5 {[%clk 0:00:04]} 68. Qxh5+ {[%clk 0:00:10.8]}
68... Kg7 {[%clk 0:00:04.9]} 69. Qf5 {[%clk 0:00:11.2]} 69... Kh6 {[%clk
0:00:05]} 70. Qg4 {[%clk 0:00:12.1]} 70... Kh7 {[%clk 0:00:05.2]} 71. f4 {[%clk
0:00:13]} 71... Kh8 {[%clk 0:00:06]} 72. f5 {[%clk 0:00:13.7]} 72... Kh7 {[%clk
0:00:06.9]} 73. Qg6+ {[%clk 0:00:13.7]} 73... Kh8 {[%clk 0:00:07.8]} 74. Qg5
{[%clk 0:00:14]} 74... Kh7 {[%clk 0:00:08.2]} 75. f6 {[%clk 0:00:14.7]} 75...
Kh8 {[%clk 0:00:09.1]} 76. Qg7# {[%clk 0:00:15.2]} 1-0

[Event "Late-Titled-Tuesday-Blitz-March-26-2024"]
[Site "Chess.com"]
[Date "2024.03.26"]
[Round "3"]
[White "GMG"]
[Black "Azerichess"]
[Result "1/2-1/2"]
[WhiteElo "2796"]
[BlackElo "3035"]
[TimeControl "180+1"]
[EndTime "14:31:10 PDT"]
[Termination "Game drawn - insufficient material"]

1. d4 {[%clk 0:02:58.5]} 1... d5 {[%clk 0:02:59.9]} 2. c4 {[%clk 0:02:58.6]}
2... c5 {[%clk 0:03:00.4]} 3. cxd5 {[%clk 0:02:51.6]} 3... Qxd5 {[%clk
0:03:01.3]} 4. Nf3 {[%clk 0:02:50.5]} 4... cxd4 {[%clk 0:03:01.5]} 5. Nc3 {[%clk
0:02:49.9]} 5... Qa5 {[%clk 0:03:01.4]} 6. Nxd4 {[%clk 0:02:47.1]} 6... Nf6
{[%clk 0:03:01]} 7. Bd2 {[%clk 0:02:14.5]} 7... Qd8 {[%clk 0:02:55.7]} 8. Bf4
{[%clk 0:02:10.8]} 8... a6 {[%clk 0:02:44]} 9. e4 {[%clk 0:02:05.9]} 9... e6
{[%clk 0:02:44]} 10. Be2 {[%clk 0:01:56.9]} 10... Be7 {[%clk 0:02:40.2]} 11. O-O
{[%clk 0:01:55.1]} 11... O-O {[%clk 0:02:40.3]} 12. e5 {[%clk 0:01:55.6]} 12...
Nd5 {[%clk 0:02:37.2]} 13. Nxd5 {[%clk 0:01:55.5]} 13... Qxd5 {[%clk 0:02:38.1]}
14. Bf3 {[%clk 0:01:55.9]} 14... Qa5 {[%clk 0:02:35.7]} 15. a3 {[%clk 0:01:36]}
15... Rd8 {[%clk 0:02:32.6]} 16. Qc2 {[%clk 0:01:29.4]} 16... Qc5 {[%clk
0:02:05.5]} 17. Qxc5 {[%clk 0:00:48.4]} 17... Bxc5 {[%clk 0:02:06.4]} 18. Nb3
{[%clk 0:00:48.6]} 18... Bb6 {[%clk 0:02:06.3]} 19. Rac1 {[%clk 0:00:39.5]}
19... Nc6 {[%clk 0:01:58.2]} 20. Bxc6 {[%clk 0:00:35.8]} 20... bxc6 {[%clk
0:01:59.1]} 21. Rxc6 {[%clk 0:00:36.4]} 21... Rb8 {[%clk 0:01:59.4]} 22. Nc5
{[%clk 0:00:28.5]} 22... Bxc5 {[%clk 0:01:53.9]} 23. Rxc5 {[%clk 0:00:29.4]}
23... Rxb2 {[%clk 0:01:53.9]} 24. Bg5 {[%clk 0:00:29.6]} 24... Re8 {[%clk
0:01:53.9]} 25. Rfc1 {[%clk 0:00:27.4]} 25... Bb7 {[%clk 0:01:53.9]} 26. R5c2
{[%clk 0:00:19]} 26... Rxc2 {[%clk 0:01:47.2]} 27. Rxc2 {[%clk 0:00:19.9]} 27...
h6 {[%clk 0:01:47.7]} 28. Be3 {[%clk 0:00:17.8]} 28... Bd5 {[%clk 0:01:46.7]}
29. f3 {[%clk 0:00:16.2]} 29... Rb8 {[%clk 0:01:46.7]} 30. Rc3 {[%clk
0:00:15.4]} 30... Kh7 {[%clk 0:01:39.4]} 31. h4 {[%clk 0:00:13.6]} 31... a5
{[%clk 0:01:35.7]} 32. Rc7 {[%clk 0:00:11.7]} 32... Kg8 {[%clk 0:01:28.7]} 33.
h5 {[%clk 0:00:11.3]} 33... a4 {[%clk 0:01:26.6]} 34. Bc5 {[%clk 0:00:11.4]}
34... Rb1+ {[%clk 0:01:15.3]} 35. Kh2 {[%clk 0:00:11.3]} 35... Rb2 {[%clk
0:01:16.2]} 36. Kg3 {[%clk 0:00:11.5]} 36... Rb1 {[%clk 0:01:15.3]} 37. Bd6
{[%clk 0:00:07.7]} 37... Rh1 {[%clk 0:01:13.7]} 38. Rc8+ {[%clk 0:00:07.9]}
38... Kh7 {[%clk 0:01:13.5]} 39. Rc7 {[%clk 0:00:08.3]} 39... Rxh5 {[%clk
0:01:12.8]} 40. Rxf7 {[%clk 0:00:08.4]} 40... Rh1 {[%clk 0:01:13.3]} 41. Rc7
{[%clk 0:00:07.8]} 41... Kg8 {[%clk 0:01:01.7]} 42. Ra7 {[%clk 0:00:06.7]} 42...
Bb3 {[%clk 0:00:59.4]} 43. Ra8+ {[%clk 0:00:06]} 43... Kh7 {[%clk 0:00:59.6]}
44. Ra7 {[%clk 0:00:06.9]} 44... Rh5 {[%clk 0:00:57.9]} 45. Kf2 {[%clk
0:00:06.1]} 45... Rf5 {[%clk 0:00:57.5]} 46. g4 {[%clk 0:00:05.2]} 46... Rf4
{[%clk 0:00:57.5]} 47. Kg3 {[%clk 0:00:04.6]} 47... Rd4 {[%clk 0:00:36.7]} 48.
Bf8 {[%clk 0:00:04.8]} 48... Rd3 {[%clk 0:00:35.2]} 49. Rxg7+ {[%clk 0:00:02.9]}
49... Kh8 {[%clk 0:00:35.6]} 50. Rf7 {[%clk 0:00:03.5]} 50... Kg8 {[%clk
0:00:35.5]} 51. Rf6 {[%clk 0:00:03.2]} 51... Bd5 {[%clk 0:00:36.4]} 52. Bd6
{[%clk 0:00:02.8]} 52... Kg7 {[%clk 0:00:35.7]} 53. Kf2 {[%clk 0:00:02.9]} 53...
Kh7 {[%clk 0:00:34.4]} 54. Bf8 {[%clk 0:00:02.8]} 54... Kg8 {[%clk 0:00:34.5]}
55. Bd6 {[%clk 0:00:02.4]} 55... Kg7 {[%clk 0:00:34.5]} 56. f4 {[%clk
0:00:02.7]} 56... Rf3+ {[%clk 0:00:23.3]} 57. Ke1 {[%clk 0:00:03.1]} 57... Rg3
{[%clk 0:00:24.2]} 58. Bf8+ {[%clk 0:00:02.3]} 58... Kg8 {[%clk 0:00:24.3]} 59.
f5 {[%clk 0:00:01.7]} 59... Rxg4 {[%clk 0:00:14.9]} 60. fxe6 {[%clk 0:00:02.2]}
60... Bxe6 {[%clk 0:00:13.8]} 61. Rxe6 {[%clk 0:00:01.9]} 61... Kxf8 {[%clk
0:00:14.4]} 62. Rxh6 {[%clk 0:00:02.7]} 62... Rg3 {[%clk 0:00:15]} 63. Ra6
{[%clk 0:00:03.3]} 63... Rxa3 {[%clk 0:00:14.4]} 64. e6 {[%clk 0:00:03.9]} 64...
Ra1+ {[%clk 0:00:14.3]} 65. Kd2 {[%clk 0:00:04.3]} 65... Ra3 {[%clk 0:00:14.9]}
66. Kc2 {[%clk 0:00:04.8]} 66... Ke7 {[%clk 0:00:15.5]} 67. Kb2 {[%clk
0:00:05.2]} 67... Rb3+ {[%clk 0:00:16]} 68. Ka2 {[%clk 0:00:05.7]} 68... Rb4
{[%clk 0:00:16.5]} 69. Ka3 {[%clk 0:00:06.2]} 69... Rd4 {[%clk 0:00:16.9]} 70.
Rxa4 {[%clk 0:00:07]} 70... Rxa4+ {[%clk 0:00:17.4]} 71. Kxa4 {[%clk 0:00:07.9]}
71... Kxe6 {[%clk 0:00:17.2]} 1/2-1/2